[Event "FIDE World School-ch O-9 2025"]
[Site "Vrnjacka Banja"]
[Date "2025.03.24"]
[Round "5.1"]
[White "Sultankhan, Nurislam"]
[Black "Wee, Yu Heng Lucas John"]
[Result "1-0"]
[Annotator "NA RC"]
[ECO "A05"]
[WhiteElo "1649"]
[BlackElo "1680"]
[PlyCount "81"]
[EventDate "2025.03.19"]
[EventType "swiss"]
[EventCountry "SRB"]
[SourceTitle "playchess.com"]
[Source "ChessBase"]
[SourceQuality "1"]
[TimeControl "5400+30"]

1. Nf3 {[%emt 0:00:23]} Nf6 {[%emt 0:00:01]} 2. b3 {[%emt 0:00:57]} g6 {[%emt 0:00:11]} 3. Bb2 {[%emt 0:00:56]} Bg7 {[%emt 0:00:06]} 4. g3 {[%emt 0:01:13]} O-O {[%emt 0:00:14]} 5. Bg2 {[%emt 0:00:58]} d5 {[%emt 0:00:16]} 6. O-O {[%emt 0:01:04]} c5 {[%emt 0:00:11]} 7. d4 {[%emt 0:03:53]} cxd4 {[%emt 0:00:14]} 8. Bxd4 {[%emt 0:01:57]} Nc6 {[%emt 0:01:34]} 9. Bb2 {[%emt 0:00:39]} Qc7 {[%emt 0:06:04]} 10. Nbd2 {[%emt 0:12:20]} e5 {[%emt 0:01:52]} 11. c3 {[%emt 0:06:48]} Bf5 {[%emt 0:06:48]} 12. Rc1 {[%emt 0:02:57]} Rfd8 {[%emt 0:12:37]} 13. b4 {[%emt 0:07:32]} Ne8 {[%emt 0:07:11]} 14. Qb3 {[%emt 0:05:29]} e4 {[%emt 0:04:47]} 15. Ne1 {[%emt 0:11:36]} Bh6 {[%emt 0:12:00]} 16. e3 {[%emt 0:04:13]} Bg4 {[%emt 0:01:26]} 17. Nc2 {[%emt 0:01:47]} Be2 {[%emt 0:09:20]} 18. Rfe1 {[%emt 0:04:10]} Bd3 {[%emt 0:00:26]} 19. c4 {[%emt 0:10:26]} d4 {[%emt 0:06:13]} 20. Nxe4 {[%emt 0:04:43]} Bxc2 {[%emt 0:14:02]} 21. Rxc2 {[%emt 0:02:34]} Qb6 {[%emt 0:02:49]} 22. a3 {[%emt 0:04:54]} a5 {[%emt 0:02:32]} 23. c5 {[%emt 0:01:41]} Qb5 {[%emt 0:00:51]} 24. Bf1 {[%emt 0:01:06]} d3 {[%emt 0:01:32]} 25. Nd6 {[%emt 0:02:14]} Rxd6 {[%emt 0:08:47]} 26. cxd6 {[%emt 0:00:30]} Ne5 {[%emt 0:00:53]} 27. Bxe5 {[%emt 0:00:56]} d2 {[%emt 0:00:17]} 28. Rxd2 {[%emt 0:00:41]} Qxe5 {[%emt 0:00:13]} 29. d7 {[%emt 0:00:32]} Nd6 {[%emt 0:00:04]} 30. Red1 {[%emt 0:00:29]} Bf8 {[%emt 0:00:21]} 31. bxa5 {[%emt 0:01:18]} Qxa5 {[%emt 0:00:14]} 32. Rxd6 {[%emt 0:00:57]} Bxd6 {[%emt 0:00:07]} 33. Rxd6 {[%emt 0:00:08]} Qd8 {[%emt 0:00:03]} 34. Qb6 {[%emt 0:00:30]} Kf8 {[%emt 0:00:10]} 35. Qxd8+ {[%emt 0:00:33]} Rxd8 {[%emt 0:00:01]} 36. Bb5 {[%emt 0:00:02]} Ke7 {[%emt 0:00:16]} 37. Rb6 {[%emt 0:00:07]} Ra8 {[%emt 0:00:41]} 38. a4 {[%emt 0:00:07]} Ra7 {[%emt 0:00:05]} 39. Rd6 {[%emt 0:00:39]} Kd8 {[%emt 0:00:01]} 40. Rf6 {[%emt 0:00:10]} Ke7 {[%emt 0:00:03]} 41. Rxf7+ {[%emt 0:00:11]} 1-0

[Event "FIDE World School-ch O-9 2025"]
[Site "Vrnjacka Banja"]
[Date "2025.03.24"]
[Round "5.2"]
[White "Nematillakhonov, Nurmuhammad"]
[Black "Ulan, Rizat"]
[Result "1/2-1/2"]
[Annotator "NA RC"]
[ECO "A58"]
[WhiteElo "1767"]
[BlackElo "1769"]
[PlyCount "124"]
[EventDate "2025.03.19"]
[EventType "swiss"]
[EventCountry "SRB"]
[SourceTitle "playchess.com"]
[Source "ChessBase"]
[SourceQuality "1"]
[TimeControl "5400+30"]

1. d4 {[%emt 0:02:11]} Nf6 {[%emt 0:00:10]} 2. c4 {[%emt 0:00:02]} g6 {[%emt 0:00:07]} 3. g3 {[%emt 0:00:13]} c5 {[%emt 0:00:05]} 4. d5 {[%emt 0:00:08]} b5 {[%emt 0:00:12]} 5. cxb5 {[%emt 0:00:43]} a6 {[%emt 0:00:05]} 6. bxa6 {[%emt 0:01:39]} Bg7 {[%emt 0:00:22]} 7. Nc3 {[%emt 0:00:33]} O-O {[%emt 0:01:18]} 8. e4 {[%emt 0:00:42]} d6 {[%emt 0:02:59]} 9. Nf3 {[%emt 0:01:36]} Nxa6 {[%emt 0:00:58]} 10. Bg2 {[%emt 0:03:56]} Nb4 {[%emt 0:02:14]} 11. a3 {[%emt 0:01:06]} c4 {[%emt 0:10:47]} 12. O-O {[%emt 0:02:06]} Nd3 {[%emt 0:01:53]} 13. a4 {[%emt 0:11:27]} Qb6 {[%emt 0:10:38]} 14. Qc2 {[%emt 0:03:29]} Rb8 {[%emt 0:00:39]} 15. a5 {[%emt 0:03:44]} Qb3 {[%emt 0:08:46]} 16. Qxb3 {[%emt 0:03:12]} Rxb3 {[%emt 0:00:05]} 17. a6 {[%emt 0:03:11]} Nxc1 {[%emt 0:00:24]} 18. a7 {[%emt 0:01:54]} Bb7 {[%emt 0:07:34]} 19. Rfxc1 {[%emt 0:08:23]} Ra8 {[%emt 0:03:11]} 20. Nd2 {[%emt 0:20:00]} Rxb2 {[%emt 0:06:02]} 21. Nxc4 {[%emt 0:01:55]} Rb4 {[%emt 0:00:22]} 22. Rcb1 {[%emt 0:11:15]} Rxb1+ {[%emt 0:00:50]} 23. Rxb1 {[%emt 0:00:58]} Rxa7 {[%emt 0:00:04]} 24. e5 {[%emt 0:00:01]} dxe5 {[%emt 0:03:09]} 25. Nxe5 {[%emt 0:01:27]} Nxd5 {[%emt 0:15:18]} 26. Bxd5 {[%emt 0:03:35]} Bxe5 {[%emt 0:01:20]} 27. Nb5 {[%emt 0:00:08]} Bxd5 {[%emt 0:03:44]} 28. Nxa7 {[%emt 0:00:01]} e6 {[%emt 0:03:14]} 29. Nc8 {[%emt 0:01:32]} Bf6 {[%emt 0:04:17]} 30. Nd6 {[%emt 0:01:04]} Be5 {[%emt 0:03:09]} 31. Nb5 {[%emt 0:02:32]} g5 {[%emt 0:00:27]} 32. h3 {[%emt 0:00:43]} Kg7 {[%emt 0:00:14]} 33. Re1 {[%emt 0:00:48]} f6 {[%emt 0:12:23]} 34. Na3 {[%emt 0:00:49]} h5 {[%emt 0:00:00]} 35. Nc2 {[%emt 0:00:08]} Kf7 {[%emt 0:00:00]} 36. Ne3 {[%emt 0:00:26]} Bf3 {[%emt 0:00:00]} 37. Rb1 {[%emt 0:01:18]} Kg6 {[%emt 0:00:00]} 38. Rb6 {[%emt 0:00:26]} Kf7 {[%emt 0:00:00]} 39. Nc4 {[%emt 0:00:52]} Bd4 {[%emt 0:00:00]} 40. Ra6 {[%emt 0:01:35]} Bd5 {[%emt 0:00:00]} 41. Nd2 {[%emt 0:00:30]} Ke7 {[%emt 0:00:00]} 42. Nf1 {[%emt 0:00:33]} Kf7 {[%emt 0:00:00]} 43. Ra4 {[%emt 0:00:50]} Be5 {[%emt 0:00:00]} 44. Ne3 {[%emt 0:00:24]} Bc6 {[%emt 0:04:19]} 45. Ra7+ {[%emt 0:00:17]} Kf8 {[%emt 0:00:08]} 46. Ra6 {[%emt 0:00:10]} Bb7 {[%emt 0:01:30]} 47. Rxe6 {[%emt 0:00:17]} Bc8 {[%emt 0:00:06]} 48. Rc6 {[%emt 0:01:01]} Bxh3 {[%emt 0:00:04]} 49. Nc4 {[%emt 0:02:02]} Bd4 {[%emt 0:00:06]} 50. Rd6 {[%emt 0:00:20]} Bc3 {[%emt 0:00:21]} 51. Rc6 {[%emt 0:00:32]} Bd4 {[%emt 0:00:11]} 52. Rc7 {[%emt 0:00:21]} Be6 {[%emt 0:00:10]} 53. Nd2 {[%emt 0:00:30]} f5 {[%emt 0:00:52]} 54. Nf3 {[%emt 0:01:01]} Bf6 {[%emt 0:00:05]} 55. Kh2 {[%emt 0:01:18]} Kg8 {[%emt 0:00:24]} 56. Ne1 {[%emt 0:00:30]} h4 {[%emt 0:00:55]} 57. Nd3 {[%emt 0:00:53]} hxg3+ {[%emt 0:00:08]} 58. fxg3 {[%emt 0:00:45]} f4 {[%emt 0:00:33]} 59. gxf4 {[%emt 0:05:58]} gxf4 {[%emt 0:03:08]} 60. Rc6 {[%emt 0:00:30]} Kf7 {[%emt 0:00:30]} 61. Nxf4 {[%emt 0:00:30]} Be5 62. Kg3 Bxf4+ {[%emt 0:01:00]} 1/2-1/2

[Event "FIDE World School-ch O-9 2025"]
[Site "Vrnjacka Banja"]
[Date "2025.03.24"]
[Round "5.3"]
[White "Agar, Garig"]
[Black "Dede, Omer Taha"]
[Result "1-0"]
[Annotator "NA RC"]
[ECO "D31"]
[WhiteElo "1620"]
[BlackElo "1647"]
[PlyCount "151"]
[EventDate "2025.03.19"]
[EventType "swiss"]
[EventCountry "SRB"]
[SourceTitle "playchess.com"]
[Source "ChessBase"]
[SourceQuality "1"]
[TimeControl "5400+30"]

1. d4 {[%emt 0:02:48]} d5 {[%emt 1:31:00]} 2. c4 {[%emt 0:00:36]} e6 {[%emt 0:00:00]} 3. Nc3 {[%emt 0:00:27]} a6 {[%emt 0:00:00]} 4. cxd5 {[%emt 0:00:11]} exd5 {[%emt 0:00:00]} 5. Nf3 {[%emt 0:00:22]} c6 {[%emt 0:00:00]} 6. Bf4 {[%emt 0:02:02]} Nf6 {[%emt 0:00:00]} 7. e3 {[%emt 0:00:36]} Be6 {[%emt 0:00:00]} 8. Bd3 {[%emt 0:00:37]} Bd6 {[%emt 0:00:00]} 9. O-O {[%emt 0:02:18]} O-O {[%emt 0:00:00]} 10. Qd2 {[%emt 0:01:09]} Qc7 {[%emt 0:00:00]} 11. Rac1 {[%emt 0:00:28]} Nbd7 {[%emt 0:00:00]} 12. b4 {[%emt 0:01:01]} Nb6 {[%emt 0:00:00]} 13. Bg3 {[%emt 0:09:44]} Qd7 {[%emt 0:00:00]} 14. a3 {[%emt 0:08:09]} Rac8 {[%emt 0:00:00]} 15. Qc2 {[%emt 0:02:55]} h6 {[%emt 0:00:00]} 16. Ne5 {[%emt 0:04:50]} Bxe5 {[%emt 0:00:00]} 17. Bxe5 {[%emt 0:03:17]} Ng4 {[%emt 0:00:00]} 18. Bg3 {[%emt 0:00:50]} f5 {[%emt 0:00:00]} 19. h3 {[%emt 0:05:01]} Nf6 {[%emt 0:00:00]} 20. Nb1 {[%emt 0:04:45]} Ne4 {[%emt 0:00:00]} 21. Bh2 {[%emt 0:00:51]} Nc4 {[%emt 0:00:00]} 22. Bxc4 {[%emt 0:03:50]} dxc4 {[%emt 0:00:00]} 23. f3 {[%emt 0:00:50]} Nf6 {[%emt 0:00:00]} 24. Nd2 {[%emt 0:00:48]} b5 {[%emt 0:00:00]} 25. Rfe1 {[%emt 0:03:51]} Nd5 {[%emt 0:00:00]} 26. Nf1 {[%emt 0:01:24]} Nb6 {[%emt 0:00:00]} 27. Rcd1 {[%emt 0:03:48]} Rcd8 {[%emt 0:00:00]} 28. Ng3 {[%emt 0:01:51]} Nd5 {[%emt 0:00:00]} 29. Qc1 {[%emt 0:03:24]} f4 {[%emt 0:00:00]} 30. Nf1 {[%emt 0:03:29]} fxe3 {[%emt 0:00:00]} 31. Nxe3 {[%emt 0:00:13]} Nf4 {[%emt 0:00:00]} 32. Bxf4 {[%emt 0:03:52]} Rxf4 {[%emt 0:00:00]} 33. Nc2 {[%emt 0:00:12]} Rff8 {[%emt 0:00:05]} 34. Qe3 {[%emt 0:03:25]} Bf5 {[%emt 0:00:25]} 35. Qc3 {[%emt 0:00:30]} Rfe8 {[%emt 0:01:15]} 36. Rxe8+ {[%emt 0:02:16]} Rxe8 {[%emt 0:15:45]} 37. Ne3 {[%emt 0:00:45]} Bd3 {[%emt 0:00:00]} 38. Ng4 {[%emt 0:00:25]} Rd8 {[%emt 0:00:00]} 39. Ne5 {[%emt 0:00:46]} Qxd4+ {[%emt 0:00:00]} 40. Qxd4 {[%emt 0:00:07]} Rxd4 {[%emt 0:00:00]} 41. Nxc6 {[%emt 0:00:10]} Rf4 {[%emt 0:00:00]} 42. Ne5 {[%emt 0:00:54]} Bc2 {[%emt 0:00:00]} 43. Rd2 {[%emt 0:01:21]} Bb3 {[%emt 0:00:00]} 44. Rd5 {[%emt 0:04:42]} c3 {[%emt 0:00:00]} 45. Rc5 {[%emt 0:00:35]} Rc4 {[%emt 0:00:00]} 46. Nxc4 {[%emt 0:00:29]} Bxc4 {[%emt 0:00:00]} 47. Re5 {[%emt 0:00:07]} Bb3 {[%emt 0:00:00]} 48. Re1 {[%emt 0:02:40]} c2 {[%emt 0:00:00]} 49. Kf2 {[%emt 0:00:15]} Kf7 {[%emt 0:00:00]} 50. Ke3 {[%emt 0:00:25]} Ke6 {[%emt 0:00:00]} 51. f4 {[%emt 0:01:56]} h5 {[%emt 0:02:40]} 52. g4 {[%emt 0:00:55]} hxg4 {[%emt 0:00:58]} 53. hxg4 {[%emt 0:00:07]} g6 {[%emt 0:01:12]} 54. Kd4+ {[%emt 0:00:22]} Kd6 {[%emt 0:00:34]} 55. Kc3 {[%emt 0:00:24]} Ba4 {[%emt 0:00:14]} 56. f5 {[%emt 0:00:14]} g5 {[%emt 0:00:57]} 57. f6 {[%emt 0:00:35]} c1=Q+ {[%emt 0:00:19]} 58. Rxc1 {[%emt 0:00:08]} Ke6 {[%emt 0:00:08]} 59. Rf1 {[%emt 0:00:13]} Kf7 {[%emt 0:00:06]} 60. Kb2 {[%emt 0:00:15]} Ke8 {[%emt 0:00:45]} 61. f7+ {[%emt 0:00:22]} Kf8 {[%emt 0:00:08]} 62. Kc3 {[%emt 0:00:09]} Bd1 {[%emt 0:00:08]} 63. Rxd1 {[%emt 0:00:08]} Kxf7 {[%emt 0:00:11]} 64. Rd6 {[%emt 0:00:06]} Ke7 {[%emt 0:00:06]} 65. Rxa6 {[%emt 0:00:24]} Kf7 {[%emt 0:00:04]} 66. Kd4 {[%emt 0:00:07]} Ke7 {[%emt 0:00:06]} 67. Ke5 {[%emt 0:00:07]} Kd7 {[%emt 0:00:03]} 68. Re6 {[%emt 0:00:11]} Kc7 {[%emt 0:00:05]} 69. Rd6 {[%emt 0:00:05]} Kb7 {[%emt 0:00:05]} 70. Kd5 {[%emt 0:00:10]} Kc7 {[%emt 0:00:06]} 71. Kc5 {[%emt 0:00:07]} Kb7 {[%emt 0:00:05]} 72. Rc6 {[%emt 0:00:07]} Ka7 {[%emt 0:00:05]} 73. Rb6 {[%emt 0:00:13]} Ka8 {[%emt 0:00:07]} 74. Kc6 {[%emt 0:00:05]} Ka7 {[%emt 0:00:05]} 75. Kc7 {[%emt 0:00:06]} Ka8 {[%emt 0:10:13]} 76. Ra6# {[%emt 0:00:33]} 1-0

[Event "FIDE World School-ch O-9 2025"]
[Site "Vrnjacka Banja"]
[Date "2025.03.24"]
[Round "5.4"]
[White "Lee, Jinwoo A"]
[Black "Batbileg, Boldbaatar"]
[Result "0-1"]
[Annotator "NA RC"]
[ECO "D37"]
[WhiteElo "1525"]
[BlackElo "1637"]
[PlyCount "90"]
[EventDate "2025.03.19"]
[EventType "swiss"]
[EventCountry "SRB"]
[SourceTitle "playchess.com"]
[Source "ChessBase"]
[SourceQuality "1"]
[TimeControl "5400+30"]

1. d4 {[%emt 0:00:04]} d5 {[%emt 0:03:40]} 2. c4 {[%emt 0:02:34]} e6 {[%emt 0:00:59]} 3. Nc3 {[%emt 0:03:48]} a6 {[%emt 0:01:15]} 4. cxd5 {[%emt 0:00:08]} exd5 {[%emt 0:00:22]} 5. Nf3 {[%emt 0:01:23]} Nf6 {[%emt 0:00:15]} 6. Bf4 {[%emt 0:00:13]} Be7 {[%emt 0:00:58]} 7. e3 {[%emt 0:04:13]} O-O {[%emt 0:01:54]} 8. Bd3 {[%emt 0:01:04]} c5 {[%emt 0:05:27]} 9. O-O {[%emt 0:03:57]} c4 {[%emt 0:03:48]} 10. Bc2 {[%emt 0:01:34]} Bg4 {[%emt 0:01:29]} 11. Re1 {[%emt 0:05:18]} Nc6 {[%emt 0:01:21]} 12. a3 {[%emt 0:02:21]} b5 {[%emt 0:03:54]} 13. h3 {[%emt 0:05:55]} Bh5 {[%emt 0:00:24]} 14. Qe2 {[%emt 0:09:22]} Re8 {[%emt 0:04:43]} 15. Bd1 {[%emt 0:00:22]} Qb6 {[%emt 0:06:17]} 16. Bc2 {[%emt 0:00:52]} b4 {[%emt 0:11:41]} 17. axb4 {[%emt 0:00:50]} Bxb4 {[%emt 0:02:30]} 18. Qd1 {[%emt 0:03:26]} Rad8 {[%emt 0:01:14]} 19. g4 {[%emt 0:00:44]} Bg6 {[%emt 0:02:54]} 20. Bxg6 {[%emt 0:00:16]} hxg6 {[%emt 0:00:09]} 21. Qc2 {[%emt 0:03:50]} Ne4 {[%emt 0:02:35]} 22. Red1 {[%emt 0:03:22]} Na5 {[%emt 0:12:11]} 23. Nd2 {[%emt 0:05:43]} Nxd2 {[%emt 0:00:36]} 24. Qxd2 {[%emt 0:01:23]} Nb3 {[%emt 0:00:22]} 25. Qc2 {[%emt 0:00:27]} Nxa1 {[%emt 0:00:14]} 26. Rxa1 {[%emt 0:00:03]} Re7 {[%emt 0:03:15]} 27. Bg5 {[%emt 0:03:48]} f6 {[%emt 0:00:34]} 28. Bf4 {[%emt 0:00:04]} g5 {[%emt 0:00:22]} 29. Bg3 {[%emt 0:00:43]} Bxc3 {[%emt 0:00:45]} 30. Qxc3 {[%emt 0:00:16]} Rb7 {[%emt 0:00:08]} 31. Rb1 {[%emt 0:00:48]} a5 {[%emt 0:01:41]} 32. f3 {[%emt 0:01:52]} a4 {[%emt 0:00:52]} 33. Be1 {[%emt 0:00:14]} Qb3 {[%emt 0:01:07]} 34. Qa5 {[%emt 0:00:20]} Rdd7 {[%emt 0:01:12]} 35. Qa8+ {[%emt 0:00:33]} Kh7 {[%emt 0:03:38]} 36. Qa5 {[%emt 0:00:48]} Qa2 {[%emt 0:01:43]} 37. Rd1 {[%emt 0:01:10]} Rxb2 {[%emt 0:01:36]} 38. Rd2 {[%emt 0:00:16]} a3 {[%emt 0:02:01]} 39. Qa8 {[%emt 0:00:35]} Rxd2 {[%emt 0:03:53]} 40. Bxd2 {[%emt 0:00:14]} Qb1+ {[%emt 0:01:25]} 41. Kg2 {[%emt 0:00:21]} Rb7 {[%emt 0:00:27]} 42. Qe8 {[%emt 0:00:12]} g6 {[%emt 0:00:13]} 43. Qe6 {[%emt 0:00:40]} a2 {[%emt 0:00:49]} 44. Bc3 {[%emt 0:00:06]} a1=Q {[%emt 0:01:05]} 45. Bxa1 {[%emt 0:00:07]} Qxa1 {[%emt 0:00:21]} 0-1

[Event "FIDE World School-ch O-9 2025"]
[Site "Vrnjacka Banja"]
[Date "2025.03.24"]
[Round "5.5"]
[White "Khabul, Chinzorig"]
[Black "Pinskiy, German Ant"]
[Result "1/2-1/2"]
[Annotator "NA RC"]
[ECO "D52"]
[WhiteElo "1513"]
[BlackElo "1600"]
[PlyCount "96"]
[EventDate "2025.03.19"]
[EventType "swiss"]
[EventCountry "SRB"]
[SourceTitle "playchess.com"]
[Source "ChessBase"]
[SourceQuality "1"]
[TimeControl "5400+30"]

1. d4 {[%emt 0:01:21]} d5 {[%emt 0:00:04]} 2. c4 {[%emt 0:00:40]} e6 {[%emt 0:00:07]} 3. Nc3 {[%emt 0:00:46]} Nf6 {[%emt 0:00:05]} 4. Bg5 {[%emt 0:00:32]} c6 {[%emt 0:00:08]} 5. e3 {[%emt 0:03:23]} Nbd7 {[%emt 0:00:52]} 6. Nf3 {[%emt 0:01:02]} Qa5 {[%emt 0:00:13]} 7. Bxf6 {[%emt 0:10:04]} Nxf6 {[%emt 0:00:10]} 8. a3 {[%emt 0:00:26]} Ne4 {[%emt 0:00:51]} 9. Qc2 {[%emt 0:00:17]} Bb4 {[%emt 0:01:56]} 10. Rc1 {[%emt 0:02:32]} Bxc3+ {[%emt 0:00:25]} 11. bxc3 {[%emt 0:00:30]} Qxa3 {[%emt 0:02:25]} 12. Bd3 {[%emt 0:01:45]} O-O {[%emt 0:02:53]} 13. O-O {[%emt 0:00:16]} f5 {[%emt 0:01:41]} 14. Ne5 {[%emt 0:02:26]} Nf6 {[%emt 0:05:18]} 15. c5 {[%emt 0:07:02]} Qa5 {[%emt 0:00:20]} 16. c4 {[%emt 0:02:07]} Qc7 {[%emt 0:01:26]} 17. Ra1 {[%emt 0:07:56]} Nd7 {[%emt 0:01:24]} 18. f4 {[%emt 0:03:26]} Nxe5 {[%emt 0:01:44]} 19. fxe5 {[%emt 0:00:30]} Bd7 {[%emt 0:01:22]} 20. cxd5 {[%emt 0:03:35]} cxd5 {[%emt 0:01:43]} 21. Rfb1 {[%emt 0:01:27]} Bc6 {[%emt 0:01:13]} 22. Kh1 {[%emt 0:06:45]} g6 {[%emt 0:01:54]} 23. Rg1 {[%emt 0:00:38]} Qf7 {[%emt 0:01:40]} 24. Raf1 {[%emt 0:01:01]} a6 {[%emt 0:06:52]} 25. g4 {[%emt 0:05:45]} Bb5 {[%emt 0:01:09]} 26. Bxb5 {[%emt 0:00:49]} axb5 {[%emt 0:00:06]} 27. gxf5 {[%emt 0:00:20]} exf5 {[%emt 0:00:08]} 28. Qb3 {[%emt 0:01:06]} Qd7 {[%emt 0:02:19]} 29. Rb1 {[%emt 0:01:17]} Ra5 {[%emt 0:01:05]} 30. Ra1 {[%emt 0:11:52]} Rfa8 {[%emt 0:01:04]} 31. Rxa5 {[%emt 0:03:52]} Ra7 {[%emt 1:03:23]} 32. Ra6 Rxa6 {[%emt 0:00:00]} 33. Rb1 {[%emt 0:00:42]} Ra5 {[%emt 0:00:00]} 34. Qb4 {[%emt 0:03:15]} Kf7 {[%emt 0:00:00]} 35. Qb3 {[%emt 0:01:47]} Qd8 {[%emt 0:00:00]} 36. Rf1 {[%emt 0:00:47]} Kg7 {[%emt 0:00:00]} 37. Rb1 {[%emt 0:01:14]} Kh6 {[%emt 0:00:00]} 38. Qd3 {[%emt 0:04:06]} Ra2 {[%emt 0:00:00]} 39. Qf1 {[%emt 0:09:45]} Qh4 {[%emt 0:00:00]} 40. Qf4+ {[%emt 0:00:10]} Qxf4 {[%emt 0:00:00]} 41. exf4 {[%emt 0:00:11]} Ra5 {[%emt 0:00:00]} 42. Kg2 {[%emt 0:00:11]} Kg7 {[%emt 0:05:30]} 43. Rb3 {[%emt 0:00:29]} Kf7 {[%emt 0:00:00]} 44. Kf3 {[%emt 0:00:13]} Ke7 {[%emt 0:00:00]} 45. Ke3 {[%emt 0:00:06]} Kd7 {[%emt 0:00:00]} 46. Kd3 {[%emt 0:00:23]} Kc6 {[%emt 0:00:00]} 47. Kc3 {[%emt 0:00:28]} h6 {[%emt 0:00:00]} 48. h4 {[%emt 0:03:34]} Ra8 {[%emt 0:00:00]} 1/2-1/2

[Event "FIDE World School-ch O-9 2025"]
[Site "Vrnjacka Banja"]
[Date "2025.03.24"]
[Round "5.6"]
[White "Zhanabayev, Arystan"]
[Black "Bondarev, Fedor"]
[Result "1/2-1/2"]
[Annotator "NA RC"]
[ECO "B22"]
[WhiteElo "1507"]
[BlackElo "1598"]
[PlyCount "117"]
[EventDate "2025.03.19"]
[EventType "swiss"]
[EventCountry "SRB"]
[SourceTitle "playchess.com"]
[Source "ChessBase"]
[SourceQuality "1"]
[TimeControl "5400+30"]

1. e4 {[%emt 0:00:14]} c5 {[%emt 0:00:08]} 2. c3 {[%emt 0:00:29]} d5 {[%emt 0:00:07]} 3. exd5 {[%emt 0:00:08]} Qxd5 {[%emt 0:00:05]} 4. d4 {[%emt 0:00:06]} Nf6 {[%emt 0:00:09]} 5. Nf3 {[%emt 0:00:05]} e6 {[%emt 0:00:36]} 6. Be2 {[%emt 0:03:52]} cxd4 {[%emt 0:01:44]} 7. cxd4 {[%emt 0:05:04]} Nc6 {[%emt 0:00:44]} 8. Nc3 {[%emt 0:02:15]} Qd8 {[%emt 0:00:21]} 9. O-O {[%emt 0:01:18]} Be7 {[%emt 0:06:04]} 10. Be3 {[%emt 0:03:48]} O-O {[%emt 0:01:08]} 11. Qa4 {[%emt 0:05:55]} Bd7 {[%emt 0:00:16]} 12. Rfd1 {[%emt 0:08:29]} Nb4 {[%emt 0:00:31]} 13. Bb5 {[%emt 0:01:25]} Bxb5 {[%emt 0:00:03]} 14. Nxb5 {[%emt 0:00:10]} a6 {[%emt 0:00:16]} 15. Nc3 {[%emt 0:01:07]} Nbd5 {[%emt 0:02:20]} 16. Bg5 {[%emt 0:10:38]} Rc8 {[%emt 0:14:54]} 17. Rac1 {[%emt 0:01:40]} Qd6 {[%emt 0:06:58]} 18. Bxf6 {[%emt 0:08:35]} Bxf6 {[%emt 0:00:10]} 19. Ne4 {[%emt 0:02:56]} Qf4 {[%emt 0:10:10]} 20. Rxc8 {[%emt 0:06:39]} Rxc8 {[%emt 0:00:11]} 21. Nc5 {[%emt 0:02:39]} Qc7 {[%emt 0:01:47]} 22. Nd3 {[%emt 0:13:06]} Qc2 {[%emt 0:17:46]} 23. Qxc2 {[%emt 0:01:01]} Rxc2 {[%emt 0:00:14]} 24. Rc1 {[%emt 0:03:29]} Rxc1+ {[%emt 0:01:09]} 25. Nxc1 {[%emt 0:00:02]} Kf8 {[%emt 0:00:09]} 26. Kf1 {[%emt 0:00:15]} Ke7 {[%emt 0:00:04]} 27. Nd3 {[%emt 0:01:11]} b6 {[%emt 0:00:19]} 28. g4 {[%emt 0:02:09]} g5 {[%emt 0:00:10]} 29. Ke2 {[%emt 0:01:55]} Kd6 {[%emt 0:00:16]} 30. Nde5 {[%emt 0:02:44]} Ke7 {[%emt 0:00:25]} 31. Nd3 {[%emt 0:01:23]} h6 {[%emt 0:00:15]} 32. Kd2 {[%emt 0:02:17]} Bg7 {[%emt 0:04:05]} 33. b4 {[%emt 0:03:28]} f6 {[%emt 0:00:33]} 34. h4 {[%emt 0:02:04]} Kd6 {[%emt 0:00:11]} 35. hxg5 {[%emt 0:01:18]} hxg5 {[%emt 0:00:08]} 36. a4 {[%emt 0:01:13]} Nf4 {[%emt 0:01:38]} 37. Nxf4 {[%emt 0:02:29]} gxf4 {[%emt 0:00:08]} 38. Kd3 {[%emt 0:00:40]} Kd5 {[%emt 0:01:22]} 39. g5 {[%emt 0:00:49]} fxg5 {[%emt 0:04:40]} 40. Nxg5 {[%emt 0:00:06]} b5 {[%emt 0:04:51]} 41. a5 {[%emt 0:00:54]} Bf8 {[%emt 0:00:41]} 42. Kc3 {[%emt 0:00:29]} Be7 {[%emt 0:02:43]} 43. Nf3 {[%emt 0:00:32]} Ke4 {[%emt 0:00:55]} 44. Ne5 {[%emt 0:00:30]} f3 {[%emt 0:11:10]} 45. Nd7 {[%emt 0:00:13]} Bh4 {[%emt 0:03:44]} 46. Nc5+ {[%emt 0:00:11]} Kd5 {[%emt 0:00:14]} 47. Nd3 {[%emt 0:00:29]} Bg5 {[%emt 0:01:33]} 48. Nc5 {[%emt 0:00:14]} Be3 {[%emt 0:01:50]} 49. Nxa6 {[%emt 0:01:27]} Bxd4+ {[%emt 0:03:43]} 50. Kd3 {[%emt 0:00:27]} e5 {[%emt 0:00:52]} 51. Nc7+ {[%emt 0:00:19]} Kc6 {[%emt 0:00:06]} 52. Ne6 {[%emt 0:00:48]} Bxf2 {[%emt 0:00:08]} 53. Ng5 {[%emt 0:00:20]} Be1 {[%emt 0:00:46]} 54. Nxf3 {[%emt 0:00:16]} Bxb4 {[%emt 0:00:19]} 55. Nxe5+ {[%emt 0:00:11]} Kb7 {[%emt 0:00:04]} 56. Kc2 {[%emt 0:00:45]} Bxa5 {[%emt 0:00:10]} 57. Kb3 {[%emt 0:00:15]} Kb6 {[%emt 0:00:12]} 58. Nc4+ {[%emt 0:00:24]} bxc4+ {[%emt 0:00:09]} 59. Kxc4 {[%emt 0:00:06]} 1/2-1/2